[Event "*** Titled Tuesday Blitz"]
[Site "Chess.com"]
[Date "2020.12.01"]
[Round "2"]
[White "SergeiAza"]
[Black "2nd_life"]
[Result "1-0"]
[WhiteElo "2832"]
[BlackElo "2525"]
[TimeControl "180+1"]
[EndTime "10:18:04 PST"]
[Termination "SergeiAza won on time"]

1. e4 {[%clk 0:03:00.1]} 1... e5 {[%clk 0:02:58.2]} 2. Nf3 {[%clk 0:03:00.1]}
2... Nc6 {[%clk 0:02:58.4]} 3. Bb5 {[%clk 0:03:00.2]} 3... a6 {[%clk 0:02:58.9]}
4. Ba4 {[%clk 0:02:59.7]} 4... Nf6 {[%clk 0:02:59.2]} 5. O-O {[%clk 0:02:59.9]}
5... Be7 {[%clk 0:02:59.6]} 6. Re1 {[%clk 0:02:59.7]} 6... b5 {[%clk 0:02:59.9]}
7. Bb3 {[%clk 0:03:00]} 7... d6 {[%clk 0:03:00.6]} 8. c3 {[%clk 0:03:00.2]} 8...
O-O {[%clk 0:03:00.4]} 9. h3 {[%clk 0:03:00.8]} 9... Bb7 {[%clk 0:03:00.2]} 10.
d4 {[%clk 0:02:59.8]} 10... Re8 {[%clk 0:03:00.5]} 11. Nbd2 {[%clk 0:03:00.4]}
11... Bf8 {[%clk 0:03:00.9]} 12. a3 {[%clk 0:02:57.8]} 12... h6 {[%clk
0:02:54.8]} 13. d5 {[%clk 0:02:50.7]} 13... Nb8 {[%clk 0:02:45.9]} 14. Nh2
{[%clk 0:02:48.9]} 14... c6 {[%clk 0:02:40]} 15. dxc6 {[%clk 0:02:48.6]} 15...
Bxc6 {[%clk 0:02:36]} 16. Ng4 {[%clk 0:02:46.9]} 16... Nbd7 {[%clk 0:02:33.2]}
17. Qf3 {[%clk 0:02:36.1]} 17... Qe7 {[%clk 0:01:56.1]} 18. Nf1 {[%clk
0:02:33.6]} 18... Nxg4 {[%clk 0:01:51.4]} 19. hxg4 {[%clk 0:02:32.7]} 19... Nc5
{[%clk 0:01:50.8]} 20. Ba2 {[%clk 0:02:24.7]} 20... Rad8 {[%clk 0:01:36.8]} 21.
g5 {[%clk 0:02:01.6]} 21... hxg5 {[%clk 0:01:27.7]} 22. Bxg5 {[%clk 0:01:59.9]}
22... Qxg5 {[%clk 0:00:50.6]} 23. Qxf7+ {[%clk 0:01:59.7]} 23... Kh7 {[%clk
0:00:49.6]} 24. Re3 {[%clk 0:01:57.8]} 24... Bd7 {[%clk 0:00:48.1]} 25. Rg3
{[%clk 0:01:45.4]} 25... Be7 {[%clk 0:00:10.8]} 26. Rxg5 {[%clk 0:01:30]} 26...
Bxg5 {[%clk 0:00:11.7]} 27. Qh5+ {[%clk 0:01:25.6]} 27... Bh6 {[%clk 0:00:11.5]}
28. Ne3 {[%clk 0:01:24.7]} 28... Rf8 {[%clk 0:00:08.5]} 29. Rd1 {[%clk
0:01:05.2]} 29... Be8 {[%clk 0:00:06.3]} 30. Qh3 {[%clk 0:00:57.8]} 30... Bg6
{[%clk 0:00:06.1]} 31. Bb1 {[%clk 0:00:52.1]} 31... Nxe4 {[%clk 0:00:05]} 32.
Ng4 {[%clk 0:00:48.1]} 32... Nf6 {[%clk 0:00:01.8]} 33. Nxh6 {[%clk 0:00:43.3]}
33... gxh6 {[%clk 0:00:01.6]} 34. Bxg6+ {[%clk 0:00:41.3]} 34... Kxg6 {[%clk
0:00:02.5]} 35. Qe6 {[%clk 0:00:41.2]} 35... Rfe8 {[%clk 0:00:02]} 36. Qh3
{[%clk 0:00:40.4]} 36... e4 {[%clk 0:00:02.3]} 37. Rxd6 {[%clk 0:00:35.8]} 37...
Rxd6 {[%clk 0:00:01.3]} 38. Qg3+ {[%clk 0:00:36.3]} 38... Kf5 {[%clk 0:00:01.8]}
39. Qxd6 {[%clk 0:00:36.1]} 39... Re6 {[%clk 0:00:02]} 40. Qc5+ {[%clk
0:00:34.9]} 40... Re5 {[%clk 0:00:01.8]} 41. Qc8+ {[%clk 0:00:34.3]} 41... Re6
{[%clk 0:00:01.8]} 42. b3 {[%clk 0:00:32.1]} 42... h5 {[%clk 0:00:01.9]} 43. c4
{[%clk 0:00:30.9]} 43... bxc4 {[%clk 0:00:02.8]} 44. bxc4 {[%clk 0:00:31.5]}
44... Ke5 {[%clk 0:00:03.6]} 45. Qc5+ {[%clk 0:00:29.3]} 45... Kf4 {[%clk
0:00:03.7]} 46. Qe3+ {[%clk 0:00:28.4]} 46... Kf5 {[%clk 0:00:03.8]} 47. c5
{[%clk 0:00:27.3]} 47... Rc6 {[%clk 0:00:03.6]} 48. Qd4 {[%clk 0:00:26.1]} 48...
a5 {[%clk 0:00:01.9]} 49. a4 {[%clk 0:00:24.3]} 49... Ke6 {[%clk 0:00:01.2]} 50.
Kh2 {[%clk 0:00:21.2]} 1-0

[Event "*** Titled Tuesday Blitz"]
[Site "Chess.com"]
[Date "2020.12.01"]
[Round "2"]
[White "Matols"]
[Black "JoachimMouhamad"]
[Result "1-0"]
[WhiteElo "2226"]
[BlackElo "2409"]
[TimeControl "180+1"]
[EndTime "10:18:06 PST"]
[Termination "Matols won by checkmate"]

1. d4 {[%clk 0:03:00.5]} 1... Nf6 {[%clk 0:02:59.1]} 2. c4 {[%clk 0:03:00.3]}
2... g6 {[%clk 0:02:59.4]} 3. g3 {[%clk 0:03:00]} 3... c6 {[%clk 0:02:59]} 4.
Bg2 {[%clk 0:02:57.7]} 4... d5 {[%clk 0:02:59.5]} 5. b3 {[%clk 0:02:57.2]} 5...
Bg7 {[%clk 0:02:57.1]} 6. Nf3 {[%clk 0:02:56.8]} 6... dxc4 {[%clk 0:02:55.2]} 7.
bxc4 {[%clk 0:02:56.2]} 7... c5 {[%clk 0:02:56.1]} 8. Bb2 {[%clk 0:02:45.2]}
8... Ne4 {[%clk 0:02:55]} 9. O-O {[%clk 0:02:36.6]} 9... O-O {[%clk 0:02:53.6]}
10. Qb3 {[%clk 0:02:19.6]} 10... Nc6 {[%clk 0:02:46.2]} 11. Rd1 {[%clk 0:02:13]}
11... Qb6 {[%clk 0:02:35]} 12. Ne5 {[%clk 0:01:57.2]} 12... Nd6 {[%clk
0:02:09.2]} 13. Nxc6 {[%clk 0:01:18.1]} 13... bxc6 {[%clk 0:02:05.7]} 14. Qxb6
{[%clk 0:01:00.4]} 14... axb6 {[%clk 0:02:05.2]} 15. Bxc6 {[%clk 0:01:00.1]}
15... Ra7 {[%clk 0:01:55.1]} 16. Bb5 {[%clk 0:00:35.9]} 16... Be6 {[%clk
0:01:34.5]} 17. Nd2 {[%clk 0:00:29.5]} 17... cxd4 {[%clk 0:01:21.2]} 18. a4
{[%clk 0:00:29.5]} 18... d3 {[%clk 0:00:58.2]} 19. Bxg7 {[%clk 0:00:28.2]} 19...
dxe2 {[%clk 0:00:58.6]} 20. Re1 {[%clk 0:00:26.8]} 20... Kxg7 {[%clk 0:00:57.7]}
21. Rxe2 {[%clk 0:00:26.6]} 21... Nxb5 {[%clk 0:00:53.5]} 22. cxb5 {[%clk
0:00:26.2]} 22... Rd8 {[%clk 0:00:49.8]} 23. Nf3 {[%clk 0:00:25.2]} 23... Bc4
{[%clk 0:00:27.6]} 24. Ree1 {[%clk 0:00:24.4]} 24... e6 {[%clk 0:00:24]} 25. Ne5
{[%clk 0:00:24.3]} 25... Bd5 {[%clk 0:00:22.1]} 26. Red1 {[%clk 0:00:24.2]}
26... Rda8 {[%clk 0:00:21.4]} 27. Rd4 {[%clk 0:00:20]} 27... f6 {[%clk
0:00:20.5]} 28. Nc6 {[%clk 0:00:18.4]} 28... Rc7 {[%clk 0:00:17.2]} 29. Nb4
{[%clk 0:00:16.1]} 29... Bb3 {[%clk 0:00:12.4]} 30. Na6 {[%clk 0:00:14.1]} 30...
Re7 {[%clk 0:00:10.6]} 31. Rd6 {[%clk 0:00:13.9]} 31... Bd5 {[%clk 0:00:09.9]}
32. Rxb6 {[%clk 0:00:13.4]} 32... e5 {[%clk 0:00:09.9]} 33. Rd6 {[%clk 0:00:13]}
33... Bf3 {[%clk 0:00:09.3]} 34. a5 {[%clk 0:00:12.8]} 34... Rc8 {[%clk
0:00:09.3]} 35. b6 {[%clk 0:00:12]} 35... Rc2 {[%clk 0:00:07.9]} 36. Nb4 {[%clk
0:00:11.6]} 36... Rb2 {[%clk 0:00:07.6]} 37. Nd5 {[%clk 0:00:11.7]} 37... Re8
{[%clk 0:00:04.5]} 38. Rd7+ {[%clk 0:00:11.2]} 38... Kh6 {[%clk 0:00:04.8]} 39.
Nxf6 {[%clk 0:00:10.8]} 39... Rc8 {[%clk 0:00:04.4]} 40. Rxh7+ {[%clk
0:00:09.1]} 40... Kg5 {[%clk 0:00:04.3]} 41. Nd7 {[%clk 0:00:08]} 41... Rcc2
{[%clk 0:00:03.8]} 42. h4+ {[%clk 0:00:07.7]} 42... Kg4 {[%clk 0:00:04.2]} 43.
Nf6+ {[%clk 0:00:07]} 43... Kh3 {[%clk 0:00:03.9]} 44. Rf1 {[%clk 0:00:06.1]}
44... Bg2 {[%clk 0:00:03.2]} 45. h5 {[%clk 0:00:04.4]} 45... Bxf1 {[%clk
0:00:01.8]} 46. hxg6# {[%clk 0:00:04.6]} 1-0

[Event "*** Titled Tuesday Blitz"]
[Site "Chess.com"]
[Date "2020.12.01"]
[Round "2"]
[White "Sergey85Rodchenkov"]
[Black "hawes33"]
[Result "1-0"]
[WhiteElo "2448"]
[BlackElo "2253"]
[TimeControl "180+1"]
[EndTime "10:18:08 PST"]
[Termination "Sergey85Rodchenkov won by checkmate"]

1. e4 {[%clk 0:03:00.9]} 1... c5 {[%clk 0:02:58.3]} 2. Nf3 {[%clk 0:03:00.3]}
2... e6 {[%clk 0:02:57.3]} 3. d3 {[%clk 0:03:00.4]} 3... a6 {[%clk 0:02:57.3]}
4. g3 {[%clk 0:02:59.9]} 4... b5 {[%clk 0:02:57]} 5. Bg2 {[%clk 0:03:00]} 5...
Bb7 {[%clk 0:02:57.6]} 6. O-O {[%clk 0:03:00]} 6... Nf6 {[%clk 0:02:58.1]} 7.
Re1 {[%clk 0:03:00.1]} 7... Be7 {[%clk 0:02:58.6]} 8. Nbd2 {[%clk 0:02:58]} 8...
O-O {[%clk 0:02:58.9]} 9. a4 {[%clk 0:02:57.8]} 9... d5 {[%clk 0:02:58.7]} 10.
Qe2 {[%clk 0:02:53]} 10... bxa4 {[%clk 0:02:55.7]} 11. Rxa4 {[%clk 0:02:51]}
11... Bc6 {[%clk 0:02:56.1]} 12. Ra1 {[%clk 0:02:49.9]} 12... a5 {[%clk
0:02:54.4]} 13. Ne5 {[%clk 0:02:44]} 13... Qc7 {[%clk 0:02:50.5]} 14. Nxc6
{[%clk 0:02:43.4]} 14... Qxc6 {[%clk 0:02:50.9]} 15. exd5 {[%clk 0:02:41.9]}
15... exd5 {[%clk 0:02:48.6]} 16. b3 {[%clk 0:02:33.1]} 16... Ra7 {[%clk
0:02:40.9]} 17. Bb2 {[%clk 0:02:32.7]} 17... Qd6 {[%clk 0:02:29.1]} 18. Be5
{[%clk 0:02:27.3]} 18... Qb6 {[%clk 0:02:24.6]} 19. Nf3 {[%clk 0:02:20.4]} 19...
Nc6 {[%clk 0:02:20.5]} 20. Bc3 {[%clk 0:02:19.8]} 20... d4 {[%clk 0:02:19]} 21.
Bd2 {[%clk 0:02:19.3]} 21... h6 {[%clk 0:02:14.9]} 22. Ne5 {[%clk 0:02:12]}
22... Nxe5 {[%clk 0:02:11.8]} 23. Qxe5 {[%clk 0:02:12]} 23... Bd6 {[%clk
0:02:11.9]} 24. Qf5 {[%clk 0:02:09.3]} 24... Bc7 {[%clk 0:01:57.1]} 25. h4
{[%clk 0:02:03.5]} 25... Ra6 {[%clk 0:01:29.9]} 26. Re7 {[%clk 0:01:56]} 26...
Bd6 {[%clk 0:01:26.1]} 27. Re2 {[%clk 0:01:49.2]} 27... Bc7 {[%clk 0:01:24.3]}
28. Rae1 {[%clk 0:01:43.5]} 28... a4 {[%clk 0:01:23.9]} 29. bxa4 {[%clk
0:01:42.3]} 29... Rxa4 {[%clk 0:01:23.7]} 30. g4 {[%clk 0:01:38]} 30... Qd6
{[%clk 0:01:22.7]} 31. g5 {[%clk 0:01:26.1]} 31... Qh2+ {[%clk 0:01:22.2]} 32.
Kf1 {[%clk 0:01:26]} 32... hxg5 {[%clk 0:01:12.7]} 33. hxg5 {[%clk 0:01:26.2]}
33... Nh5 {[%clk 0:01:12.8]} 34. Re8 {[%clk 0:01:24.2]} 34... g6 {[%clk
0:01:03.2]} 35. Qc8 {[%clk 0:01:08.3]} 35... Bd6 {[%clk 0:00:51.5]} 36. Rxf8+
{[%clk 0:00:59.5]} 36... Bxf8 {[%clk 0:00:51.6]} 37. Qg4 {[%clk 0:00:36.9]}
37... Qd6 {[%clk 0:00:46]} 38. Bf3 {[%clk 0:00:30.9]} 38... Ng7 {[%clk
0:00:45.5]} 39. Kg2 {[%clk 0:00:29.9]} 39... c4 {[%clk 0:00:39.6]} 40. Rh1
{[%clk 0:00:27.4]} 40... cxd3 {[%clk 0:00:39]} 41. cxd3 {[%clk 0:00:27.4]} 41...
Ra2 {[%clk 0:00:35.2]} 42. Bf4 {[%clk 0:00:25.4]} 42... Qe6 {[%clk 0:00:14.8]}
43. Qh4 {[%clk 0:00:22.9]} 43... f6 {[%clk 0:00:15.3]} 44. gxf6 {[%clk
0:00:20.5]} 44... Nh5 {[%clk 0:00:15.2]} 45. Bxh5 {[%clk 0:00:20.1]} 45... gxh5
{[%clk 0:00:16.1]} 46. Qg5+ {[%clk 0:00:19.1]} 46... Kf7 {[%clk 0:00:16.1]} 47.
Qxh5+ {[%clk 0:00:19.3]} 47... Kxf6 {[%clk 0:00:16.7]} 48. Qg5+ {[%clk
0:00:18.3]} 48... Kf7 {[%clk 0:00:16.6]} 49. Rh7+ {[%clk 0:00:18]} 49... Ke8
{[%clk 0:00:17.1]} 50. Qb5+ {[%clk 0:00:17.6]} 50... Kd8 {[%clk 0:00:16.4]} 51.
Qb8+ {[%clk 0:00:15.2]} 51... Qc8 {[%clk 0:00:15.8]} 52. Bg5+ {[%clk 0:00:15.5]}
52... Be7 {[%clk 0:00:14.9]} 53. Bxe7+ {[%clk 0:00:15.5]} 53... Ke8 {[%clk
0:00:15.8]} 54. Qxc8# {[%clk 0:00:12.1]} 1-0

[Event "*** Titled Tuesday Blitz"]
[Site "Chess.com"]
[Date "2020.12.01"]
[Round "2"]
[White "sorito"]
[Black "mbojan"]
[Result "1-0"]
[WhiteElo "2493"]
[BlackElo "2671"]
[TimeControl "180+1"]
[EndTime "10:18:10 PST"]
[Termination "sorito won by resignation"]

1. Nf3 {[%clk 0:03:00.5]} 1... g6 {[%clk 0:02:58.2]} 2. d3 {[%clk 0:03:00.7]}
2... Bg7 {[%clk 0:02:58.3]} 3. Nbd2 {[%clk 0:03:01.3]} 3... c5 {[%clk
0:02:51.6]} 4. e4 {[%clk 0:03:01.6]} 4... Nc6 {[%clk 0:02:51.5]} 5. c3 {[%clk
0:03:01.8]} 5... Nf6 {[%clk 0:02:51.4]} 6. a3 {[%clk 0:03:01.2]} 6... O-O {[%clk
0:02:46.1]} 7. h3 {[%clk 0:02:57.7]} 7... d5 {[%clk 0:02:43.6]} 8. e5 {[%clk
0:02:57.6]} 8... Nh5 {[%clk 0:02:26.6]} 9. d4 {[%clk 0:02:57.5]} 9... cxd4
{[%clk 0:02:26.3]} 10. cxd4 {[%clk 0:02:57.7]} 10... Nf4 {[%clk 0:02:26.2]} 11.
Nb3 {[%clk 0:02:56.5]} 11... Ne6 {[%clk 0:02:21.9]} 12. Be3 {[%clk 0:02:45.4]}
12... Qb6 {[%clk 0:02:12]} 13. Be2 {[%clk 0:02:30.2]} 13... Na5 {[%clk
0:01:56.1]} 14. Nxa5 {[%clk 0:02:28.8]} 14... Qxa5+ {[%clk 0:01:55.4]} 15. b4
{[%clk 0:02:27.7]} 15... Qb6 {[%clk 0:01:55.7]} 16. O-O {[%clk 0:02:27.6]} 16...
Bd7 {[%clk 0:01:55.7]} 17. Qb3 {[%clk 0:02:21.8]} 17... Bb5 {[%clk 0:01:47.9]}
18. Bxb5 {[%clk 0:02:21.6]} 18... Qxb5 {[%clk 0:01:48.5]} 19. Rfc1 {[%clk
0:02:17.8]} 19... Rfc8 {[%clk 0:01:32.3]} 20. a4 {[%clk 0:02:16.4]} 20... Qd7
{[%clk 0:01:31.9]} 21. b5 {[%clk 0:02:09.1]} 21... a6 {[%clk 0:01:26.7]} 22.
Rcb1 {[%clk 0:01:52.2]} 22... Bf8 {[%clk 0:00:44.8]} 23. bxa6 {[%clk 0:01:40.8]}
23... bxa6 {[%clk 0:00:44.2]} 24. Qb7 {[%clk 0:01:40.4]} 24... Qxb7 {[%clk
0:00:30]} 25. Rxb7 {[%clk 0:01:40.1]} 25... h6 {[%clk 0:00:28.4]} 26. Rab1
{[%clk 0:01:38.9]} 26... Nd8 {[%clk 0:00:20]} 27. Rd7 {[%clk 0:01:37.9]} 27...
e6 {[%clk 0:00:19.7]} 28. Nh2 {[%clk 0:01:21.2]} 28... h5 {[%clk 0:00:15.2]} 29.
Nf3 {[%clk 0:01:21.4]} 29... Rab8 {[%clk 0:00:08.8]} 30. Rxb8 {[%clk 0:01:15.8]}
30... Rxb8 {[%clk 0:00:09.7]} 31. Bg5 {[%clk 0:01:15.4]} 31... Nc6 {[%clk
0:00:09.1]} 32. Rc7 {[%clk 0:01:11.2]} 32... Na5 {[%clk 0:00:07.1]} 33. Ra7
{[%clk 0:01:03]} 33... Nb3 {[%clk 0:00:05.2]} 34. Rxa6 {[%clk 0:01:02.3]} 34...
Bb4 {[%clk 0:00:04.8]} 35. Ra7 {[%clk 0:00:55.5]} 35... Bc3 {[%clk 0:00:04.9]}
36. Be3 {[%clk 0:00:55.7]} 36... Ba1 {[%clk 0:00:03.7]} 37. a5 {[%clk
0:00:54.3]} 37... Rb4 {[%clk 0:00:03.8]} 38. a6 {[%clk 0:00:49.6]} 38... Nxd4
{[%clk 0:00:04]} 39. Bxd4 {[%clk 0:00:33.8]} 39... Bxd4 {[%clk 0:00:04.9]} 40.
Rb7 {[%clk 0:00:34]} 40... Ra4 {[%clk 0:00:03.9]} 41. Nxd4 {[%clk 0:00:33]}
41... Rxa6 {[%clk 0:00:04.5]} 42. g3 {[%clk 0:00:29.7]} 42... Ra1+ {[%clk
0:00:04.6]} 43. Kg2 {[%clk 0:00:29.9]} 43... Re1 {[%clk 0:00:05.2]} 44. Nc6
{[%clk 0:00:29.7]} 44... Kg7 {[%clk 0:00:03.9]} 45. h4 {[%clk 0:00:30.1]} 45...
g5 {[%clk 0:00:03.9]} 46. hxg5 {[%clk 0:00:30.2]} 46... Kg6 {[%clk 0:00:04.6]}
47. f4 {[%clk 0:00:30.6]} 47... Kf5 {[%clk 0:00:05]} 48. Rxf7+ {[%clk
0:00:30.3]} 48... Kg4 {[%clk 0:00:05.1]} 49. g6 {[%clk 0:00:28.2]} 49... Re2+
{[%clk 0:00:04.8]} 50. Kf1 {[%clk 0:00:28]} 50... Kf3 {[%clk 0:00:05.2]} 51. f5
{[%clk 0:00:28.1]} 51... exf5 {[%clk 0:00:03.8]} 52. Rxf5+ {[%clk 0:00:28.2]}
52... Ke3 {[%clk 0:00:04.3]} 53. g7 {[%clk 0:00:26.1]} 53... Rb2 {[%clk
0:00:03.8]} 54. g8=Q {[%clk 0:00:25.2]} 54... Rb1+ {[%clk 0:00:04.6]} 1-0

[Event "*** Titled Tuesday Blitz"]
[Site "Chess.com"]
[Date "2020.12.01"]
[Round "2"]
[White "Nuvas"]
[Black "Marianov_Podstavnikov"]
[Result "0-1"]
[WhiteElo "2426"]
[BlackElo "2254"]
[TimeControl "180+1"]
[EndTime "10:18:12 PST"]
[Termination "Marianov_Podstavnikov won by resignation"]

1. d4 {[%clk 0:03:00.7]} 1... Nf6 {[%clk 0:02:57.5]} 2. c4 {[%clk 0:03:01.4]}
2... e6 {[%clk 0:02:57.6]} 3. Nc3 {[%clk 0:03:02]} 3... Bb4 {[%clk 0:02:57.5]}
4. g3 {[%clk 0:03:01.9]} 4... d5 {[%clk 0:02:54.7]} 5. Bg2 {[%clk 0:03:02.1]}
5... O-O {[%clk 0:02:53.8]} 6. Nf3 {[%clk 0:03:02.4]} 6... c6 {[%clk 0:02:37.6]}
7. O-O {[%clk 0:03:02.2]} 7... b6 {[%clk 0:02:36.8]} 8. Bg5 {[%clk 0:02:43.4]}
8... Nbd7 {[%clk 0:02:32.1]} 9. cxd5 {[%clk 0:02:41.7]} 9... cxd5 {[%clk
0:02:29.9]} 10. Rc1 {[%clk 0:02:38.6]} 10... h6 {[%clk 0:02:19.7]} 11. Bf4
{[%clk 0:02:38.5]} 11... a6 {[%clk 0:02:15.1]} 12. Qa4 {[%clk 0:02:34.2]} 12...
Qe7 {[%clk 0:02:09.8]} 13. Qc6 {[%clk 0:01:45.4]} 13... Ra7 {[%clk 0:02:03.5]}
14. a3 {[%clk 0:01:45.8]} 14... Bb7 {[%clk 0:01:46.4]} 15. Qa4 {[%clk
0:01:45.6]} 15... Bd6 {[%clk 0:01:21.6]} 16. Bxd6 {[%clk 0:01:38.7]} 16... Qxd6
{[%clk 0:01:21.7]} 17. Nb5 {[%clk 0:01:39.4]} 17... Bc6 {[%clk 0:01:22]} 18.
Qxa6 {[%clk 0:01:39.7]} 18... Rxa6 {[%clk 0:00:58.5]} 19. Nxd6 {[%clk
0:01:39.8]} 19... b5 {[%clk 0:00:57.4]} 20. Ne5 {[%clk 0:01:29.9]} 20... Nxe5
{[%clk 0:00:54.6]} 21. dxe5 {[%clk 0:01:30.8]} 21... Nd7 {[%clk 0:00:54.6]} 22.
f4 {[%clk 0:01:30.5]} 22... f6 {[%clk 0:00:53.1]} 23. Bh3 {[%clk 0:01:28.2]}
23... fxe5 {[%clk 0:00:45.8]} 24. Bxe6+ {[%clk 0:01:25.6]} 24... Kh8 {[%clk
0:00:46.3]} 25. Nf7+ {[%clk 0:01:14.6]} 25... Kh7 {[%clk 0:00:41.9]} 26. Bxd7
{[%clk 0:01:14.9]} 26... Bxd7 {[%clk 0:00:39.6]} 27. Nxe5 {[%clk 0:01:15.6]}
27... Bf5 {[%clk 0:00:39.7]} 28. Nc6 {[%clk 0:00:58.8]} 28... Be4 {[%clk
0:00:37]} 29. Rfd1 {[%clk 0:00:55.9]} 29... Rc8 {[%clk 0:00:35]} 30. Nb4 {[%clk
0:00:56.2]} 30... Raa8 {[%clk 0:00:34.5]} 31. Kf2 {[%clk 0:00:53.6]} 31... Rc4
{[%clk 0:00:32.3]} 32. Ke3 {[%clk 0:00:45.7]} 32... Re8 {[%clk 0:00:25.7]} 33.
Rxc4 {[%clk 0:00:32.7]} 33... dxc4 {[%clk 0:00:23.7]} 34. Kf2 {[%clk 0:00:32.2]}
34... Bf5 {[%clk 0:00:22.4]} 35. Rd5 {[%clk 0:00:31.6]} 35... Bg4 {[%clk
0:00:21.7]} 36. e3 {[%clk 0:00:31.6]} 36... c3 {[%clk 0:00:18.6]} 37. bxc3
{[%clk 0:00:31.7]} 37... Rc8 {[%clk 0:00:18.7]} 38. Rxb5 {[%clk 0:00:20.1]}
38... Rxc3 {[%clk 0:00:18.1]} 39. Ra5 {[%clk 0:00:20.3]} 39... Rb3 {[%clk
0:00:17.7]} 40. e4 {[%clk 0:00:19.5]} 40... Rf3+ {[%clk 0:00:17]} 41. Kg2 {[%clk
0:00:18.1]} 41... Re3 {[%clk 0:00:17.1]} 42. e5 {[%clk 0:00:18.5]} 42... Re2+
{[%clk 0:00:17.2]} 43. Kg1 {[%clk 0:00:19]} 43... Bh3 {[%clk 0:00:15.7]} 44. Nd3
{[%clk 0:00:14.2]} 44... Rg2+ {[%clk 0:00:15.2]} 45. Kf1 {[%clk 0:00:09]} 45...
Rd2+ {[%clk 0:00:14.6]} 46. Ke1 {[%clk 0:00:08.7]} 46... Rxd3 {[%clk 0:00:14.9]}
47. Ra6 {[%clk 0:00:07.9]} 47... Bg4 {[%clk 0:00:13.1]} 48. a4 {[%clk
0:00:08.4]} 48... Re3+ {[%clk 0:00:13.1]} 49. Kd2 {[%clk 0:00:08.5]} 49... Re2+
{[%clk 0:00:13.2]} 50. Kd3 {[%clk 0:00:09.2]} 50... Rxh2 {[%clk 0:00:13.2]} 51.
e6 {[%clk 0:00:09.8]} 51... Be2+ {[%clk 0:00:13]} 0-1

[Event "*** Titled Tuesday Blitz"]
[Site "Chess.com"]
[Date "2020.12.01"]
[Round "2"]
[White "Training_Day"]
[Black "catzapto"]
[Result "1-0"]
[WhiteElo "2390"]
[BlackElo "2126"]
[TimeControl "180+1"]
[EndTime "10:18:12 PST"]
[Termination "Training_Day won by checkmate"]

1. d4 {[%clk 0:03:00.1]} 1... Nf6 {[%clk 0:02:59.7]} 2. Bg5 {[%clk 0:02:59.7]}
2... e6 {[%clk 0:03:00.6]} 3. Nd2 {[%clk 0:02:58.8]} 3... h6 {[%clk 0:03:00.3]}
4. Bh4 {[%clk 0:02:55]} 4... Be7 {[%clk 0:02:59.9]} 5. Ngf3 {[%clk 0:02:54]}
5... c5 {[%clk 0:03:00.1]} 6. e3 {[%clk 0:02:53.6]} 6... cxd4 {[%clk 0:02:59.9]}
7. exd4 {[%clk 0:02:53.3]} 7... Nc6 {[%clk 0:02:59.9]} 8. c3 {[%clk 0:02:51]}
8... Qb6 {[%clk 0:02:59.1]} 9. Qb3 {[%clk 0:02:48.6]} 9... O-O {[%clk
0:02:57.3]} 10. Qxb6 {[%clk 0:02:42.2]} 10... axb6 {[%clk 0:02:57.3]} 11. Bd3
{[%clk 0:02:38]} 11... d5 {[%clk 0:02:57]} 12. O-O {[%clk 0:02:37.1]} 12... Bd7
{[%clk 0:02:53.7]} 13. Rfe1 {[%clk 0:02:34.5]} 13... g5 {[%clk 0:02:49.4]} 14.
Bg3 {[%clk 0:02:33.8]} 14... Nh5 {[%clk 0:02:49.7]} 15. Ne5 {[%clk 0:02:20.4]}
15... Nxe5 {[%clk 0:02:36.1]} 16. Bxe5 {[%clk 0:02:21.3]} 16... f6 {[%clk
0:02:29.6]} 17. Bc7 {[%clk 0:02:13.1]} 17... Bd8 {[%clk 0:02:30]} 18. Bd6 {[%clk
0:02:03.4]} 18... Re8 {[%clk 0:02:30.1]} 19. Bg6 {[%clk 0:02:02]} 19... Ng7
{[%clk 0:02:29.5]} 20. Bxe8 {[%clk 0:02:00.5]} 20... Nxe8 {[%clk 0:02:30.4]} 21.
Bg3 {[%clk 0:01:55.8]} 21... h5 {[%clk 0:02:30]} 22. h4 {[%clk 0:01:50.8]} 22...
gxh4 {[%clk 0:02:20.7]} 23. Bxh4 {[%clk 0:01:50.5]} 23... Kf7 {[%clk 0:02:20]}
24. Nb3 {[%clk 0:01:15.5]} 24... Ng7 {[%clk 0:02:18.8]} 25. f3 {[%clk
0:01:09.8]} 25... Nf5 {[%clk 0:02:17.9]} 26. Bf2 {[%clk 0:01:09.2]} 26... Bc7
{[%clk 0:02:17.5]} 27. Nc1 {[%clk 0:00:53]} 27... h4 {[%clk 0:02:16.1]} 28. Nd3
{[%clk 0:00:49]} 28... Bd6 {[%clk 0:01:56.6]} 29. Kf1 {[%clk 0:00:33.2]} 29...
Bb5 {[%clk 0:01:56.2]} 30. Red1 {[%clk 0:00:31.9]} 30... h3 {[%clk 0:01:38.5]}
31. gxh3 {[%clk 0:00:29.6]} 31... Rg8 {[%clk 0:01:36.1]} 32. Ke2 {[%clk
0:00:27.6]} 32... Ng3+ {[%clk 0:01:34.7]} 33. Kd2 {[%clk 0:00:21.3]} 33... Bf4+
{[%clk 0:01:32.9]} 34. Nxf4 {[%clk 0:00:20.5]} 34... e5 {[%clk 0:01:31.6]} 35.
Nxd5 {[%clk 0:00:16.7]} 35... Nf5 {[%clk 0:01:29.7]} 36. Rg1 {[%clk 0:00:15.7]}
36... Rd8 {[%clk 0:01:28.1]} 37. Ne3 {[%clk 0:00:14.2]} 37... Nd6 {[%clk
0:01:21.7]} 38. dxe5 {[%clk 0:00:10.7]} 38... Ne4+ {[%clk 0:01:21.5]} 39. Ke1
{[%clk 0:00:10.9]} 39... Nc5 {[%clk 0:01:20.2]} 40. Rd1 {[%clk 0:00:09.9]} 40...
Nd3+ {[%clk 0:01:19.4]} 41. Rxd3 {[%clk 0:00:10.2]} 41... Rxd3 {[%clk
0:01:19.8]} 42. c4 {[%clk 0:00:09.7]} 42... Ba4 {[%clk 0:01:17.4]} 43. b3 {[%clk
0:00:09.3]} 43... Bc6 {[%clk 0:01:17.9]} 44. Ke2 {[%clk 0:00:09]} 44... Rd8
{[%clk 0:01:16.2]} 45. exf6 {[%clk 0:00:09.2]} 45... Ra8 {[%clk 0:01:14.1]} 46.
a4 {[%clk 0:00:08.2]} 46... Re8 {[%clk 0:01:13.5]} 47. h4 {[%clk 0:00:06.6]}
47... Kxf6 {[%clk 0:01:13.7]} 48. Kd2 {[%clk 0:00:04.1]} 48... Rd8+ {[%clk
0:01:13.5]} 49. Nd5+ {[%clk 0:00:04.3]} 49... Kf5 {[%clk 0:01:09]} 50. Bxb6
{[%clk 0:00:03.5]} 50... Bxd5 {[%clk 0:01:08.3]} 51. cxd5 {[%clk 0:00:04.4]}
51... Rxd5+ {[%clk 0:01:09.2]} 52. Kc3 {[%clk 0:00:04.3]} 52... Rd6 {[%clk
0:01:06.6]} 53. a5 {[%clk 0:00:04.3]} 53... Rc6+ {[%clk 0:01:07.5]} 54. Kb4
{[%clk 0:00:04.6]} 54... Kf4 {[%clk 0:01:08.4]} 55. Rh1 {[%clk 0:00:04.2]} 55...
Kxf3 {[%clk 0:01:08.6]} 56. h5 {[%clk 0:00:04.7]} 56... Rh6 {[%clk 0:01:08.8]}
57. Bc7 {[%clk 0:00:03.7]} 57... Ke4 {[%clk 0:01:08.1]} 58. Kb5 {[%clk
0:00:03.6]} 58... Kd5 {[%clk 0:01:07.5]} 59. Bb6 {[%clk 0:00:04.5]} 59... Kd6
{[%clk 0:01:04.8]} 60. Be3 {[%clk 0:00:04.9]} 60... Rh7 {[%clk 0:01:04.4]} 61.
h6 {[%clk 0:00:05.2]} 61... Kd7 {[%clk 0:01:04.5]} 62. Bd4 {[%clk 0:00:04]}
62... Kc8 {[%clk 0:01:03.4]} 63. Bg7 {[%clk 0:00:04.4]} 63... Kb8 {[%clk
0:01:01.7]} 64. Kb6 {[%clk 0:00:04.6]} 64... Kc8 {[%clk 0:00:59.3]} 65. Rd1
{[%clk 0:00:05]} 65... Rxh6+ {[%clk 0:00:46.1]} 66. Bxh6 {[%clk 0:00:04.3]}
66... Kb8 {[%clk 0:00:47]} 67. Rd8# {[%clk 0:00:04]} 1-0